Cogmind - Beta 13 @@@ ROGUE MODE // 2024.04.19 @ 19:22:06 Player: Elliott Result: Destroyed by C-17 Slicer with Blade Saw Performance ------------- Evolutions (2) 1000 Regions Visited (4) 800 Robots Destroyed (45) 225 Value Destroyed (1037) 1037 Prototype IDs (8) 160 Alien Tech Used (0) 0 Bonus (74) 74 TOTAL SCORE: 3296 Bonus ------- High Alert Combat Kills 74 Cogmind --------- Core Integrity 0/550 Matter 152/300 Energy 72/100 System Corruption 0% Temperature Cool (0) Movement Core (100) Ox1 Location -8/Materials Parts ------- > --- POWER (2) -------- (None) > --- PROPULSION (4) --- (None) > --- UTILITY (2) ------ (None) > --- WEAPON (3) ------- Rocket Launcher > --- INVENTORY (5) ---- Improved Heat Sink Recoil Stabilizer Light Armor Plating Light Armor Plating Peak State ------------ > --- POWER ------------ Cooled Ion Engine Light Nuclear Core > --- PROPULSION ------- Aerolev Unit Gravmag System Gravmag System Gravmag System > --- UTILITY ---------- Targeting Computer Propulsion Shielding > --- WEAPON ----------- Flak Gun Flak Gun Flak Gun > --- INVENTORY -------- Gravmag System Recoil Stabilizer Light Armor Plating [Rating: 36] Favorites ----------- Power Cooled Ion Engine Engine Cooled Ion Engine Power Core Light Nuclear Core Propulsion Flight Unit Leg Aluminum Leg Hover Unit Gravmag System Flight Unit Flight Unit Utility Targeting Computer Device Heat Sink Processor Targeting Computer Protection Propulsion Shielding Weapon Light Assault Rifle Energy Gun EM Shotgun Ballistic Gun Light Assault Rifle Launcher Grenade Launcher Special Weapon Mining Laser Build | -11 -10 -9 -9 -8 ------- Run | Yrd Mat Mat Min Mat Slots Evolved 4 | . . 2 . 2 Power 1 | . . . . 1 Propulsion 2 | . . 1 . 1 Utility . | . . . . . Weapon 1 | . . 1 . . Parts Attached 59 | 5 7 18 7 22 Power 10 | 1 2 2 . 5 Engine 9 | 1 2 2 . 4 Core 1 | . . . . 1 Reactor . | . . . . . Propulsion 20 | 2 2 7 1 8 Treads . | . . . . . Leg 2 | 2 . . . . Wheel . | . . . . . Hover 7 | . . . . 7 Flight 11 | . 2 7 1 1 Utility 8 | . 2 2 3 1 Device 2 | . 1 . 1 . Storage . | . . . . . Processor 3 | . . 2 . 1 Hackware . | . . . . . Protection 3 | . 1 . 2 . Artifact . | . . . . . Weapon 21 | 2 1 7 3 8 Energy Gun 2 | . . 2 . . Energy Cannon . | . . . . . Ballistic Gun 15 | 2 . 4 3 6 Ballistic Cannon . | . . . . . Launcher 3 | . 1 . . 2 Special Weapon 1 | . . 1 . . Impact Weapon . | . . . . . Slashing Weapon . | . . . . . Piercing Weapon . | . . . . . Special Melee Weapon . | . . . . . Unidentified Prototypes 4 | . . 2 1 1 Corrupted Parts 1 | . . 1 . . System Corruption 1 | . . 1 . . Parts Lost 23 | . 1 5 3 14 Power 4 | . . 1 . 3 Propulsion 10 | . . 4 . 6 Utility 3 | . . . 1 2 Weapon 6 | . 1 . 2 3 Highest Loss Streak 13 | . 1 2 3 13 To Critical Strikes . | . . . . . Average Slot Usage (%) 84 | . 77 88 98 81 Engine 12 | . 14 10 11 12 Leg 4 | . 17 . . . Hover 9 | . . . . 25 Flight 14 | . 10 23 33 4 Device 1 | . . 3 . . Processor 8 | . . 14 12 8 Protection 6 | . 8 3 8 6 Ballistic Gun 22 | . 16 25 32 21 Launcher 2 | . 8 . . . Naked Turns 14 | . . . . 14 Heaviest Build 28 | 5 10 15 12 28 Greatest Support 36 | 20 20 12 12 36 Greatest Overweight (x) 5 | . . 3 . 5 Average Overweight (x) . | . . . . . Largest Inventory Capacity 5 | 5 5 5 5 5 Average Capacity 5 | 5 5 5 5 5 Most Carried 5 | 2 5 5 5 5 Average Carried 2 | . 3 1 4 3 Final Capacity 5 | 5 5 5 5 5 Final Carried 5 | 1 5 2 4 4 Class Distribution -------------------- 38% | Gunner 37% | Mutant 12% | Scavenger-Gunner 6% | Tank 4% | Scavenger-Sprinter Dominant Class ---------------- Mutant | -10/Materials Gunner | -9/Materials Scavenger-Gunner | -9/Mines Gunner | -8/Materials Resources | -11 -10 -9 -9 -8 ----------- Run | Yrd Mat Mat Min Mat Matter Collected 1208 | 256 30 397 116 409 Remotely . | . . . . . Salvage Created 1075 | 32 97 494 52 400 Parts 95 | 1 22 42 6 24 Haulers Intercepted . | . . . . . Recyclers Shooed . | . . . . . Parts Field Recycled . | . . . . . Retrieved Matter . | . . . . . Parts Self-Destructed . | . . . . . Prevented . | . . . . . Kills | -11 -10 -9 -9 -8 ------- Run | Yrd Mat Mat Min Mat Combat Hostiles Destroyed 37 | 1 8 15 3 10 Melee 1 | . . . . 1 Guns 30 | 1 2 15 3 9 AOE 6 | . 6 . . . Classes Destroyed 9 | 1 4 3 . 1 Worker 3 | . 2 1 . . Builder 1 | . . 1 . . Operator 1 | . 1 . . . Watcher 3 | . 1 . . 2 Swarmer 20 | . 8 7 3 2 Grunt 11 | 1 . 5 . 5 Duelist 1 | . . 1 . . Sentry 4 | . . 2 . 2 Hunter 1 | . . . . 1 Best Kill Streak 8 | 1 4 8 3 4 Combat Bots Only 8 | 1 3 8 3 4 Max Kills in Single Turn 3 | 1 3 2 2 1 Gunslinging 1 | . . 1 1 . Exploded 2 | . 2 . . . Melee 1 | . . . . 1 Uniques/NPCs Destroyed . | . . . . . Combat | -11 -10 -9 -9 -8 -------- Run | Yrd Mat Mat Min Mat Hostile Shots Fired 326 | 3 54 64 26 179 Missed 128 | 1 26 25 10 66 Damage Taken 2653 | 24 328 477 131 1693 Core 894 | . 92 171 65 566 Absorbed by Shields . | . . . . . Redirected to Shielding 50 | . 12 . . 38 Core Remaining (%) 68 | 100 63 . 41 . Volleys Fired 158 | 3 33 47 8 67 Largest 3 | 2 2 3 3 3 Hottest 165 | 40 50 165 60 84 Shots Fired 368 | 6 43 137 19 163 Gun 357 | 6 33 136 19 163 Cannon . | . . . . . Launcher 10 | . 10 . . . Special 1 | . . 1 . . Kinetic 352 | 6 33 131 19 163 Thermal 1 | . . 1 . . Explosive 10 | . 10 . . . Electromagnetic 5 | . . 5 . . Robot Hit Streak 18 | 1 3 18 3 7 Robot Miss Streak 13 | 1 4 6 3 13 Penetration Max . | . . . . . Secondary Targets 6 | . . 2 1 3 Max Gunslinging Chain 1 | . . 1 1 1 Shots Hit Robots 223 | 3 17 79 9 115 Core Hits 127 | 4 14 38 4 67 Critical Kills . | . . . . . Critical Parts Destroyed 2 | . 1 . . 1 Critical Strikes 2 | . 1 . . 1 Destroy 2 | . 1 . . 1 Melee Attacks . | . . . . . Impact . | . . . . . Slashing . | . . . . . Piercing . | . . . . . Sneak Attacks . | . . . . . Combat Hostiles . | . . . . . Follow-up Attacks . | . . . . . Damage Inflicted 2758 | 28 758 677 98 1197 Guns 2148 | 28 160 677 98 1185 Cannons . | . . . . . Explosions 598 | . 598 . . . Melee . | . . . . . Ramming 12 | . . . . 12 Kinetic 2100 | 28 160 629 98 1185 Thermal . | . . . . . Explosive 598 | . 598 . . . Electromagnetic 48 | . . 48 . . Impact . | . . . . . Slashing . | . . . . . Piercing . | . . . . . Highest Corruption 1 | . . 1 1 . Average Corruption 1 | . . 1 1 . Corruption Purged . | . . . . . Corruption Blocked . | . . . . . Effects 3 | . . 2 1 . Matter Fused 1 | . . 1 . . Energy Discharges 1 | . . 1 . . Parts Rejected 1 | . . . 1 . Overload Shots . | . . . . . Overflow Damage 9 | . 9 . . . Projectiles . | . . . . . Explosions 9 | . 9 . . . Melee . | . . . . . Knockbacks . | . . . . . Impact . | . . . . . Kinetic . | . . . . . Secondary . | . . . . . Self-Inflicted Damage 99 | . 93 . . 6 Shots 5 | . 5 . . . Rammed 1 | . . . . 1 Targets Rammed 1 | . . . . 1 Kicked . | . . . . . Crushed . | . . . . . Highest Temperature 229 | 6 18 63 22 229 Average Temperature 43 | 6 6 19 14 61 Received Heat Transfer 1041 | 12 42 213 . 774 Effects 1 | . . . . 1 Interference 1 | . . . . 1 Siege Activations . | . . . . . Robots Corrupted . | . . . . . Combat Hostiles . | . . . . . Parts Fried . | . . . . . Impact Corruptions . | . . . . . Robots Melted . | . . . . . Combat Hostiles . | . . . . . Parts Melted . | . . . . . Heat Transferred . | . . . . . Parts Sabotaged . | . . . . . Parts Stolen . | . . . . . Parts Stripped . | . . . . . Power Chain Reactions . | . . . . . Alert | -11 -10 -9 -9 -8 ------- Run | Yrd Mat Mat Min Mat Peak Influence 679 | 20 387 679 314 447 Initial 264 | . 13 163 264 118 Average 251 | 3 160 372 300 258 Maximum Alert Level 2 | . 1 2 1 2 Low Security (%) 42 | 100 55 38 . 45 Level 1 43 | . 44 18 100 41 Level 2 13 | . . 42 . 13 Level 3 . | . . . . . Level 4 . | . . . . . Level 5 . | . . . . . High Security . | . . . . . Max Security . | . . . . . Squads Dispatched 5 | . 2 . . 3 Investigation . | . . . . . Extermination . | . . . . . Reinforcement 4 | . 2 . . 2 Assault . | . . . . . Garrison 1 | . . . . 1 Intercept . | . . . . . Searches Triggered . | . . . . . Construction Impeded . | . . . . . Haulers Reinforced . | . . . . . Active Scanning Responses . | . . . . . Cargo Convoy Interrupts . | . . . . . Stealth | -11 -10 -9 -9 -8 --------- Run | Yrd Mat Mat Min Mat Distress Signals 3 | . 1 2 . . Communications Jammed . | . . . . . Distress Signals . | . . . . . Times Spotted 72 | 1 17 21 4 29 Peak Tracking Total 8 | 1 4 8 4 8 Tactical Retreats 5 | . . 3 . 2 Traps | -11 -10 -9 -9 -8 ------- Run | Yrd Mat Mat Min Mat Traps Triggered . | . . . . . Indirectly . | . . . . . Trap Hack Attempts . | . . . . . Triggered . | . . . . . Disarmed . | . . . . . Reprogrammed . | . . . . . Reused . | . . . . . Traps Extracted . | . . . . . Installed . | . . . . . Triggered . | . . . . . Machines | -11 -10 -9 -9 -8 ---------- Run | Yrd Mat Mat Min Mat Machines Disabled 1 | . 1 . . . Max in Single Turn 1 | . 1 . . . Machines Repaired . | . . . . . Machines Dismantled . | . . . . . Machines Sabotaged . | . . . . . Overloaded Fab Kills . | . . . . . Hacking | -11 -10 -9 -9 -8 --------- Run | Yrd Mat Mat Min Mat Machines Accessed 5 | . 3 2 . . Terminals 5 | . 3 2 . . Fabricators . | . . . . . Repair Stations . | . . . . . Recycling Units . | . . . . . Scanalyzers . | . . . . . Garrison Access . | . . . . . Total Hacks 14 | . 10 4 . . Successful 7 | . 5 2 . . Failed 7 | . 5 2 . . Catastrophic . | . . . . . Database Lockouts . | . . . . . Manual . | . . . . . Terminals 14 | . 10 4 . . Fabricators . | . . . . . Repair Stations . | . . . . . Recycling Units . | . . . . . Scanalyzers . | . . . . . Garrison Access . | . . . . . Terminal Hacks 7 | . 5 2 . . Record 3 | . 3 . . . Prototype ID Bank 2 | . 1 1 . . Alert Level 2 | . 1 1 . . Fabricator Hacks . | . . . . . Repair Station Hacks . | . . . . . Recycling Unit Hacks . | . . . . . Scanalyzer . | . . . . . Garrison Access Hacks . | . . . . . Unauthorized Hacks . | . . . . . Terminals . | . . . . . Fabricators . | . . . . . Repair Stations . | . . . . . Recycling Units . | . . . . . Scanalyzers . | . . . . . Garrison Access . | . . . . . Data Cores Recovered 1 | . 1 . . . Used 1 | . 1 . . . Hacking Detections 3 | . 3 . . . Full Trace Events . | . . . . . Feedback Events . | . . . . . Feedback Blocked . | . . . . . Robot Schematics Acquired . | . . . . . Robots Built . | . . . . . Authchips . | . . . . . Time . | . . . . . Total Robot Build Rating . | . . . . . Part Schematics Acquired . | . . . . . Parts Built . | . . . . . Authchips . | . . . . . Time . | . . . . . Total Part Build Rating . | . . . . . Parts Repaired . | . . . . . Time . | . . . . . Parts Recycled . | . . . . . Recycled Matter . | . . . . . Retrieved Matter . | . . . . . Retrieved Components . | . . . . . Parts Scanalyzed . | . . . . . Part Schematics Acquired . | . . . . . Parts Damaged . | . . . . . Bothacking | -11 -10 -9 -9 -8 ------------ Run | Yrd Mat Mat Min Mat Used RIF Installer . | . . . . . Robots Hacked . | . . . . . Non-combat . | . . . . . Combat . | . . . . . Robot Hacks Applied . | . . . . . Relay Couplers Released . | . . . . . Fabnet Peak Effective % . | . . . . . Robots Rewired . | . . . . . Allies Hacked . | . . . . . Hacks Repelled . | . . . . . Allies | -11 -10 -9 -9 -8 -------- Run | Yrd Mat Mat Min Mat Total Allies . | . . . . . Largest Group . | . . . . . Highest-Rated Group . | . . . . . Highest-Rated Ally . | . . . . . Total Orders . | . . . . . Ally Attacks . | . . . . . Total Damage . | . . . . . Kills . | . . . . . Allies Corrupted . | . . . . . Allies Melted . | . . . . . Intel | -11 -10 -9 -9 -8 ------- Run | Yrd Mat Mat Min Mat Robot Analysis Total . | . . . . . Derelict Logs Recovered 1 | . . . 1 . Drone Launches . | . . . . . Drone Recoveries . | . . . . . Exploration | -11 -10 -9 -9 -8 ------------- Run | Yrd Mat Mat Min Mat Turns Passed 1387 | 79 329 306 197 476 Spaces Moved 1563 | 63 323 217 436 524 Core 82 | 21 . 7 . 54 Treads . | . . . . . Legs 177 | 42 135 . . . Wheels . | . . . . . Hover 343 | . . . . 343 Flight 961 | . 188 210 436 127 Fastest Speed 31 | 50 37 34 34 31 Average Speed 52 | 96 71 65 34 45 Slowest Speed 300 | 120 120 200 34 300 Overloaded Moves . | . . . . . Propulsion Burnouts . | . . . . . Robots Hopped 10 | . 2 2 5 1 Cave-ins Triggered . | . . . . . Exploration Rate (%) 43 | 6 77 21 82 30 Regions Visited 4 Branch Regions 1 Pre-discovered Areas 1 | . . . 1 . Known Exits Taken . | . . . . . Unknown Exits Taken 4 | 1 1 1 1 . Scrap Searched . | . . . . . Spaces Dug . | . . . . . Terrain Destroyed 55 | . 54 1 . . Melee . | . . . . . Projectile 1 | . . 1 . . AOE 54 | . 54 . . . Terrain Rammed . | . . . . . Walls Destroyed . | . . . . . Machines Disabled . | . . . . . Actions | -11 -10 -9 -9 -8 --------- Run | Yrd Mat Mat Min Mat Total 1880 | 76 385 301 467 651 Wait 26 | . 4 1 12 9 Move 1539 | 62 318 212 425 522 Hop 10 | . 2 2 5 1 Pick Up 36 | 6 12 7 5 6 Fast Attach 27 | . 1 6 4 16 Attach 31 | 5 5 12 3 6 Detach 19 | . 2 6 2 9 Swap 1 | . 1 . . . Drop 32 | . 7 8 3 14 Fire 158 | 3 33 47 8 67 Melee . | . . . . . Ram 1 | . . . . 1 Kick . | . . . . . Crush . | . . . . . Escape Stasis . | . . . . . Rewire . | . . . . . Trap . | . . . . . Miscellaneous . | . . . . . Route ------- -11/Scrapyard -10/Materials (discovered 4 exits: *Mat x2 / [*Min x2]) -9/Materials -9/Mines -8/Materials History --------- Turn | Location | Event 2 | -11/Scrapyard | Met Revision 17 57 | -11/Scrapyard | Discovered new exit (range 8) 80 | -11/Scrapyard | Entered Materials 203 | -10/Materials | Discovered new exit (range 10) 259 | -10/Materials | Discovered new exit (range 6) 303 | -10/Materials | Build established: Mutant 324 | -10/Materials | Discovered new exit (range 15) 387 | -10/Materials | Discovered new exit (range 16) 409 | -10/Materials | Entered another Materials area 409 | -9/Materials | Evolved 2 slots: Propulsion x1, Weapon x1 512 | -9/Materials | Discovered new exit (range 14) 632 | -9/Materials | Destroyed 8 combat bots 715 | -9/Materials | Entered Mines 731 | -9/Mines | Core integrity fell below 50% 776 | -9/Mines | Lost 3 parts (1u2w) 883 | -9/Mines | Found a damaged Exp. Sensor Array with a note attached 884 | -9/Mines | Found Prototype Device 886 | -9/Mines | Identified Exp. Sensor Array 907 | -9/Mines | Learned location of Storage (-7) 907 | -9/Mines | Discovered new exit (range 7) 912 | -9/Mines | Entered Materials 912 | -8/Materials | Evolved 2 slots: Power x1, Propulsion x1 1308 | -8/Materials | Garrison activated, responded to threat 1336 | -8/Materials | Core integrity fell below 50% 1379 | -8/Materials | Core integrity fell below 20% 1388 | -8/Materials | Destroyed by C-17 Slicer with Blade Saw Last Messages --------------- Acquired 41 matter. Critical hit (Burn: +37). Acquired 61 matter. Cld. Ion Engine destroyed. K-01 Serf destroyed. Acquired Visual Processing Unit. Acquired Imp. Hover Unit. Acquired 37 matter. Imp. Hover Unit destroyed. K-01 Serf cleans the Electrolysis Chamber. ALERT: Suspicious intruders detected, dispatching Cutter reinforcements to area. Critical hit (Burn: +37). Knocked back. C-17 Slicer knocked back. C-17 Slicer destroyed. Visual Processing Unit severed. Acquired Rocket Launcher. Rocket Launcher severed. Acquired Rocket Launcher. Map ----- +----------------------------------------------------+ | | | | | | | | | | | | | | | | | | | | | | | | | | | | | | | | | | | | | | | | | | | | | | | | | ????????????????????????#############????????????? | | ????????????????????????#@c ! = #????????????? | | ????????????????????????#cc #????????????? | | ????????????????????????# """ """ #????????????? | | ????????????????????????# """ """ #????????????? | | ????????????????????????# """ """ #????????????? | | ????????????????????????# #????????????? | | ????????????????????????# #????????????? | | ?????????????????# ??# ### ####????????????? | | ?????????????????+ # #############??? | | ?????????????????# H Y ??? | | ?????????????????# ??? | | ?????????????????# =%! ??? | | ?????????????????##### ############???? | | ?????????????????# ###??###?????????? | | ?????????????????# ## #?? #?????????? | | ?????????????????# / ?# # """" #?????????? | | ?????????????????# ?# + """" #?????????? | | ?????????????????# """ """ ?# # """" #?????????? | | ?????????????????# """ """ ?# #?? #?????????? | | ?????????????????? """ """??# #???? #?????????? | | ??????????????????? ??????# #?######?????????? | | ?????????#?????????#####????# # #?????????? | | ?????????# ###########T###### # #?????????? | | ?????????# + """ #?????????? | | ?????????# # """ #?????????? | +----------------------------------------------------+ Best States ------------- Heat Dissipation 38 Energy Generation 23 Energy Capacity 460 Matter Stores 300 Matter Capacity 300 Sight Range 18 Terrain Scan Density 10 Propulsion Shielding 33 Evasion (%) 63 Targeting Accuracy 10 Item Schematics ----------------- None Robot Schematics ------------------ None Fabricated ------------ Nothing Alien Tech Used ----------------- None Achievements -------------- Dynamic Key More Dakka Please Oops Challenges ------------ None Game ------ Seed HypervelocityBiocellJammer Manual? 0 Play Time 00:29:48 Cumulative 1.4 hours Start 2024.04.19 @ 18:53:29 End 2024.04.19 @ 19:22:06 Sessions 1 Manual Loads 0 Difficulty Rogue Special Mode None Game No. 3 Rogue 3 Adventurer 0 Explorer 0 Win Type - Total 0 Types 0/0/0/0/0/0/0/0/0 Lore% 1 Gallery% 4 Achievement% 5 Wizard Run 0 Options --------- Layout 1 ASCII 0 Keyboard 0 Movement Numpad Keybinds 0 Fullscreen 1 Font 24/Terminus Map View 50x35 Zoom Use 0% Tactical HUD 0 Map Filters NONE Filters NONE Steam 1 RUN: 83e4bf72-4a94-4504-b929-89127ac879b5